bitfinex/quotes_ETHUSD_20260207
["timestamp","ask_amount","ask_price","bid_price","bid_amount"]
[1770428534002,1.04677791,2052.5,2052.4,0.001]
[1770428534310,1.21778946,2052.9,2052.4,0.001]
[1770428534311,1.04677791,2052.8,2052.4,0.001]
[1770428534615,1.04677791,2052.7,2052.4,0.001]
[1770428534906,1.04677791,2052.6,2052.4,0.001]
[1770428535102,1.04677791,2052.5,2052.4,0.001]
[1770428535682,1.61461549,2053.0,2052.5,4.05299127]
[1770428535890,1.04677791,2052.9,2052.5,4.05299127]
[1770428536921,1.04677791,2052.9,2052.4,4.05399127]
[1770428537116,1.04677791,2052.9,2052.5,1.21802679]
[1770428537298,1.04677791,2052.9,2052.4,9.33187644]
[1770428537299,1.04677791,2052.9,2052.4,5.67763174]
[1770428537913,1.21967835,2053.1,2052.5,4.05299127]
[1770428538085,1.04677791,2053.0,2052.5,4.05299127]
[1770428538821,1.04677791,2053.0,2052.4,1.62464047]
[1770428539015,1.04677791,2053.0,2052.5,1.05511202]
[1770428539692,2.26451496,2053.0,2052.5,2.27313733]
[1770428540317,0.002,2052.7,2052.6,0.001]
[1770428541187,0.002,2052.7,2052.6,7.316e-05]
[1770428542512,0.002,2052.7,2052.5,2.27313244]
[1770428542722,0.002,2052.7,2052.6,0.65297316]
[1770428543025,0.002,2053.1,2052.6,4.70596443]
[1770428544305,0.002,2053.1,2052.7,1.21790812]
[1770428545018,0.002,2053.1,2052.7,5.27089939]
[1770428545518,0.002,2053.1,2052.8,4.05299127]
[1770428545721,0.002,2053.1,2052.9,0.52708994]
[1770428545925,0.002,2053.1,2052.8,4.05299127]
[1770428546322,0.002,2053.1,2052.9,5.27078073]
[1770428547792,1.05038215,2053.0,2052.9,5.27078073]
[1770428549020,1.05038215,2053.0,2052.7,1.21788491]
[1770428549215,0.002,2053.1,2052.8,1.21784879]
[1770428549216,1.05038215,2052.9,2052.8,1.21784879]
[1770428550228,0.002,2053.1,2052.8,1.21784879]
[1770428550603,0.002,2053.1,2052.6,5.92388363]
[1770428550801,0.002,2053.1,2052.7,1.18509355]
[1770428552222,0.002,2053.1,2052.6,5.92388363]
[1770428552602,0.002,2053.1,2052.6,9.77388363]
[1770428553205,0.002,2053.1,2052.8,0.001]
[1770428553405,0.002,2053.1,2052.8,4.05399127]
[1770428554141,0.002,2053.0,2052.8,4.05399127]
[1770428554314,0.002,2053.0,2052.9,4.4583904]
[1770428555419,0.002,2053.0,2052.9,5.67617986]
[1770428558432,0.002,2053.0,2052.9,9.52617986]
[1770428558931,0.002,2053.0,2052.9,5.47318859]
[1770428559236,0.002,2053.0,2052.9,1.62318859]
[1770428561727,0.002,2053.1,2052.9,5.90785623]
[1770428561928,0.002,2053.1,2053.0,1.07802137]
[1770428562133,1.05156602,2053.1,2053.0,1.07802137]
[1770428562638,0.38755195,2053.1,2053.0,1.07802137]
[1770428562823,0.002,2053.3,2053.0,1.07802137]
[1770428563625,0.002,2053.3,2053.0,5.36268901]
[1770428563833,0.002,2053.3,2053.1,0.69858776]
[1770428565230,0.002,2053.3,2053.1,6.2009168]
[1770428565431,0.002,2053.4,2053.2,4.28466764]
[1770428565622,0.002,2053.4,2053.1,1.91624916]
[1770428566513,0.002,2053.4,2053.1,1.91724916]
[1770428566715,0.002,2053.4,2053.2,1.17159539]
[1770428567343,0.002,2053.3,2053.2,1.17159539]
[1770428567758,0.002,2053.3,2053.2,2.38920692]
[1770428569346,0.002,2053.8,2053.3,4.28466764]
[1770428569860,0.002,2053.8,2053.4,1.21749293]
[1770428570060,0.002,2053.8,2053.5,1.03723593]
[1770428570644,0.002,2053.8,2053.3,1.21750898]
[1770428571736,0.002,2053.8,2053.3,5.50217662]
[1770428571963,0.002,2053.8,2053.3,1.21750898]
[1770428574962,0.002,2053.8,2053.3,5.50217662]
[1770428575168,0.002,2053.8,2053.3,1.21750898]
[1770428575457,0.002,2053.8,2053.4,5.01061108]
[1770428576642,0.002,2053.8,2053.5,1.21743364]
[1770428577245,0.002,2053.8,2053.4,6.228058]
[1770428579759,0.002,2053.8,2053.5,4.28566764]
[1770428580149,0.002,2053.6,2053.5,4.28566764]
[1770428580354,0.002,2054.3,2053.7,4.28466764]
[1770428580543,0.002,2054.3,2054.0,4.28466764]
[1770428581060,0.002,2054.3,2054.1,1.21707803]
[1770428581747,0.002,2054.3,2054.0,1.2170964]
[1770428581930,0.002,2054.3,2054.0,3.16179611]
[1770428582532,0.002,2054.7,2054.3,4.28466764]
[1770428583138,0.002,2054.7,2054.4,1.21690031]
[1770428583335,0.002,2054.7,2054.4,5.50156795]
[1770428583562,0.002,2054.7,2054.5,1.03693193]
[1770428584146,0.002,2054.7,2054.3,1.21694715]
[1770428584557,0.002,2055.0,2054.7,4.28466764]
[1770428584865,0.002,2055.0,2054.5,4.28466764]
[1770428585058,0.002,2055.0,2054.6,1.21678185]
[1770428589162,0.002,2055.0,2054.6,4.23348558]
[1770428589335,0.002,2055.0,2054.7,0.91008084]
[1770428591275,0.002,2055.0,2054.7,2.12676818]
[1770428591751,0.002,2055.0,2054.8,0.001]
[1770428592070,4.19638319,2055.0,2054.8,0.001]
[1770428592649,0.002,2055.0,2054.8,0.001]
[1770428593255,0.002,2055.0,2054.8,2.24948669]
[1770428593572,0.002,2055.0,2054.8,1.03282724]
[1770428596351,0.002,2055.0,2054.8,0.001]
[1770428596978,4.19638319,2055.0,2054.8,0.001]
[1770428597179,4.19638319,2055.0,2054.5,0.001]
[1770428598482,5.4109874,2054.9,2054.5,0.001]
[1770428600266,1.21660421,2054.9,2054.5,0.001]
[1770428600467,4.86840199,2055.0,2054.5,0.001]
[1770428600766,0.7,2054.8,2054.5,0.001]
[1770428602177,1.21854501,2055.0,2054.5,0.001]
[1770428602484,0.002,2055.0,2054.5,5.4512838]
[1770428603359,0.002,2055.0,2054.5,4.23448558]
[1770428603577,0.002,2055.0,2054.5,0.001]
[1770428603752,0.002,2055.0,2054.5,1.03290792]
[1770428604675,0.002,2055.0,2054.7,0.001]
[1770428604981,0.002,2054.8,2054.7,0.001]
[1770428605697,0.002,2055.0,2054.7,4.23448558]
[1770428606594,0.002,2055.0,2054.7,0.001]
[1770428607079,0.002,2055.0,2054.7,2.35283819]
[1770428607379,0.002,2055.0,2054.7,6.58632377]
[1770428607556,0.002,2055.0,2054.8,4.23348558]
[1770428608475,0.002,2055.0,2054.7,2.35283819]
[1770428609568,0.002,2055.0,2054.7,6.58632377]
[1770428609880,0.002,2055.0,2054.8,1.14533914]
[1770428610985,0.002,2055.0,2054.7,0.001]
[1770428613810,4.19638319,2055.0,2054.7,0.001]
[1770428613976,4.19638319,2055.0,2054.7,7.335e-05]
[1770428614967,4.19638319,2055.0,2054.5,0.001]
[1770428614968,4.19438319,2054.9,2054.5,0.001]
[1770428615178,4.19438319,2054.9,2054.0,1.21713097]
[1770428615481,10.271403,2055.0,2054.1,0.001]
[1770428615482,4.19438319,2054.7,2054.1,0.001]
[1770428617285,1.21678185,2054.6,2054.1,0.001]
[1770428617598,1.21678185,2054.6,2054.3,0.001]
[1770428617893,1.21878185,2054.6,2054.3,0.001]
[1770428619900,1.21878185,2054.6,2054.3,7.351e-05]
[1770428620112,2.39164802,2054.6,2054.3,7.351e-05]
[1770428623698,1.17486617,2054.6,2054.3,7.351e-05]
[1770428624002,2.39165029,2054.6,2054.3,7.351e-05]
[1770428626474,6.83007559,2054.6,2054.3,0.00107351]
[1770428626674,6.83007559,2054.6,2054.0,1.21813443]
[1770428626877,0.50984247,2054.5,2054.0,1.21813443]
[1770428627175,6.83007559,2054.6,2054.0,1.21813443]
[1770428628979,4.4384253,2054.5,2054.0,0.001]
[1770428630087,4.4384253,2054.3,2053.7,0.001]
[1770428630403,1.21707803,2054.1,2053.7,0.001]
[1770428630798,1.04798597,2054.0,2053.7,0.001]
[1770428631005,1.04798597,2053.9,2053.7,0.001]
[1770428631192,1.04798597,2053.8,2053.7,0.001]
[1770428631505,1.21707803,2054.1,2053.7,0.001]
[1770428631707,1.65490302,2054.0,2053.7,0.001]
[1770428631906,1.04760549,2053.9,2053.7,0.001]
[1770428632097,0.60729753,2054.0,2053.7,0.001]
[1770428632309,1.04760533,2053.9,2053.7,0.001]
[1770428632486,6.26289705,2054.0,2053.7,0.001]
[1770428632803,2.1604245,2053.9,2053.7,0.001]
[1770428633002,1.04729737,2053.8,2053.7,0.001]
[1770428640911,2.26455318,2053.8,2053.7,0.001]
[1770428641209,2.26455318,2053.8,2053.3,0.001]
[1770428641210,6.70297848,2053.8,2053.3,0.001]
[1770428641415,1.04729737,2053.7,2053.3,0.001]
[1770428641583,1.71759522,2053.6,2053.3,0.001]
[1770428641787,1.04729737,2053.5,2053.3,0.001]
[1770428641986,0.67029785,2053.6,2053.3,0.001]
[1770428642207,1.04709366,2053.5,2053.3,0.001]
[1770428642406,1.21734931,2053.7,2053.3,0.001]
[1770428642594,1.04722284,2053.6,2053.3,0.001]
[1770428642793,1.04722284,2053.5,2053.3,0.001]
[1770428643001,1.21734931,2053.7,2053.3,0.001]
[1770428643201,1.04722328,2053.6,2053.3,0.001]
[1770428643517,1.04722328,2053.5,2053.3,0.001]
[1770428643698,1.21734931,2053.7,2053.5,0.001]
[1770428643900,1.04746125,2053.6,2053.5,0.001]
[1770428645318,2.26483561,2053.6,2053.5,0.001]
[1770428646097,6.57695869,2053.6,2053.3,0.001]
[1770428646318,1.04746125,2053.5,2053.3,0.001]
[1770428646510,1.70515712,2053.4,2053.3,0.001]
[1770428646709,1.70515712,2053.4,2053.1,0.001]
[1770428646909,1.04746125,2053.3,2053.1,0.001]
[1770428647213,2.26507278,2053.2,2053.1,0.001]
[1770428647806,1.04746125,2053.2,2053.1,0.001]
[1770428648308,3.04435885,2053.2,2053.1,0.001]
[1770428649713,1.82674732,2053.2,2053.1,0.001]
[1770428649921,1.04746125,2053.2,2053.1,0.001]
[1770428651723,2.26507278,2053.2,2052.9,0.001]
[1770428651920,1.04746125,2053.1,2052.9,0.001]
[1770428652125,1.21761153,2053.2,2052.5,0.001]
[1770428652126,5.49917062,2053.2,2052.5,0.001]
[1770428652299,2.08351697,2053.1,2052.5,0.001]
[1770428652500,1.04657162,2053.0,2052.5,0.001]
[1770428652724,1.03694535,2053.1,2052.5,0.001]
[1770428652926,1.04642267,2053.0,2052.5,0.001]
[1770428653094,1.04645716,2052.9,2052.5,0.001]
[1770428653300,0.63649616,2052.9,2052.5,0.001]
[1770428654325,1.85428911,2052.9,2052.5,0.001]
[1770428655095,1.03694535,2053.1,2052.6,4.3204754]
[1770428655295,1.21755223,2053.3,2052.6,4.3204754]
[1770428655510,5.32797383,2053.2,2052.5,0.001]
[1770428655710,5.32797383,2053.1,2052.5,0.001]
[1770428656028,4.28155909,2052.9,2052.7,0.001]
[1770428656203,1.04641474,2052.8,2052.3,0.001]
[1770428656400,1.21790812,2052.7,2052.3,0.001]
[1770428656600,1.04641474,2052.6,2052.1,0.001]
[1770428656825,1.04641474,2052.5,2052.1,0.001]
[1770428657000,1.04641474,2052.4,2052.1,0.001]
[1770428657204,1.04641474,2052.3,2051.7,0.001]
[1770428657423,1.04641474,2052.2,2051.7,0.001]
[1770428657724,0.53279738,2052.2,2051.7,0.001]
[1770428658022,1.04636772,2052.1,2051.7,0.001]
[1770428658222,1.04636772,2052.0,2051.7,0.001]
[1770428658425,1.21826421,2052.1,2051.7,0.001]
[1770428658731,1.04574779,2052.0,2051.7,0.001]
[1770428658913,0.76698023,2052.0,2051.7,0.001]
[1770428661227,1.7510306,2052.2,2051.7,0.001]
[1770428661622,1.21812715,2052.4,2051.7,4.3214754]
[1770428662636,9.15272762,2052.9,2051.7,4.3214754]
[1770428662837,1.04385978,2052.8,2052.1,4.3204754]
[1770428663018,1.04385978,2052.8,2052.0,9.0718078]
[1770428663019,1.75057066,2053.0,2052.3,4.3204754]
[1770428663218,2.26152209,2052.9,2052.3,5.53858888]
[1770428663426,1.04370844,2052.8,2052.3,5.53858888]
[1770428663625,1.04370844,2052.8,2052.4,4.3204754]
[1770428663931,1.21768312,2053.1,2052.4,4.3204754]
[1770428664131,1.04371197,2053.0,2052.4,6.40271675]
[1770428664338,1.21768312,2053.1,2052.4,6.40271675]
[1770428664534,1.04392332,2053.0,2052.4,4.3204754]
[1770428664719,1.21768312,2053.1,2052.4,4.3204754]
[1770428664915,1.04392284,2053.0,2052.4,4.3204754]
[1770428665111,1.21768312,2053.1,2052.4,4.3204754]
[1770428665432,1.04392249,2053.0,2052.4,4.3204754]
[1770428665637,4.87268335,2053.3,2052.5,4.87433737]
[1770428665806,1.04411925,2053.2,2052.5,4.87433737]
[1770428666011,1.04411925,2053.1,2052.5,4.87433737]
[1770428666211,4.87268335,2053.3,2052.5,4.87433737]
[1770428666437,1.04427948,2053.2,2052.5,4.87433737]
[1770428666737,1.04427948,2053.1,2052.6,4.9297162]
[1770428666939,4.87268335,2053.3,2052.6,4.9297162]
[1770428667233,2.26206849,2053.2,2052.6,6.14767625]
[1770428667437,1.04440363,2053.1,2052.7,4.3204754]
[1770428667606,1.21961129,2053.3,2052.5,5.42573179]
[1770428667607,5.49917494,2053.2,2052.5,0.55386197]
[1770428667810,1.04469211,2053.1,2052.3,5.53858026]
[1770428668006,1.04469532,2053.0,2052.4,1.21808487]
[1770428668233,5.49917494,2053.2,2052.4,1.21808487]
[1770428668421,1.04487868,2053.1,2052.3,5.53857941]
[1770428668621,1.04487868,2053.0,2052.4,1.21806385]
[1770428668808,0.65440536,2053.0,2052.3,5.53858239]
[1770428669008,0.65440536,2053.0,2051.9,0.001]
[1770428669219,1.21978946,2052.9,2052.2,1.21820271]
[1770428669424,1.04567787,2052.8,2052.2,1.21820271]
[1770428669620,1.04567787,2052.7,2052.1,5.53871582]
[1770428669835,1.21978946,2052.9,2052.1,5.53871582]
[1770428669836,0.67453527,2052.8,2052.1,5.53871582]
[1770428670143,1.04568329,2052.7,2052.1,5.53871582]
[1770428670324,0.67453527,2052.8,2052.1,5.53871582]
[1770428670635,1.04579993,2052.7,2052.1,5.53871582]
[1770428670850,0.29401247,2052.7,2052.1,5.53871582]
[1770428671532,1.51194433,2052.7,2052.1,5.53871582]
[1770428672031,1.51194433,2052.7,2052.1,1.21824042]
[1770428672845,1.51194433,2052.7,2052.1,5.06824042]
[1770428673443,0.29401247,2052.7,2052.1,4.3204754]
[1770428673644,4.87322355,2052.9,2052.1,4.3204754]
[1770428673645,0.002,2052.9,2052.1,4.3204754]
[1770428674923,1.21979694,2052.9,2052.1,4.3204754]
[1770428675119,1.0469193,2052.8,2052.1,4.3204754]
[1770428675319,1.0469193,2052.7,2052.1,4.3204754]
[1770428675520,1.21790812,2052.7,2052.1,5.53873716]
[1770428675725,0.6091423,2052.7,2052.2,4.28382566]
[1770428675927,1.21982345,2052.9,2052.2,4.28382566]
[1770428676235,1.04732555,2052.8,2052.2,4.28382566]
[1770428676438,1.04732555,2052.7,2052.2,4.28382566]
[1770428676626,1.21982345,2052.9,2052.2,4.28382566]
[1770428676826,1.0476728,2052.8,2052.2,4.28382566]
[1770428677041,1.0476728,2052.7,2052.2,5.32134009]
[1770428677245,1.21982345,2052.9,2052.2,5.32134009]
[1770428677551,2.26575988,2052.8,2052.2,6.53954394]
[1770428677734,1.04786392,2052.7,2052.2,6.53953919]
[1770428678435,1.04786392,2052.6,2052.2,6.53953919]
[1770428678755,1.21789596,2052.8,2052.2,6.53953919]
[1770428678930,1.0480764,2052.7,2052.2,6.53953919]
[1770428679126,1.0480764,2052.6,2052.0,5.50209337]
[1770428679354,1.0480764,2052.5,2052.0,5.50209337]
[1770428679555,1.0480764,2052.4,2052.0,5.50209337]
[1770428679731,1.2180487,2052.5,2052.0,5.50209337]
[1770428679926,1.0483473,2052.4,2052.0,5.50209337]
[1770428680128,1.2180487,2052.5,2052.0,5.50209337]
[1770428680345,1.04834743,2052.4,2052.0,5.50209337]
[1770428680535,1.2180487,2052.5,2052.0,5.50209337]
[1770428680850,1.04854432,2052.4,2052.0,5.50209337]
[1770428681052,1.04857787,2052.3,2052.0,4.28382566]
[1770428681251,1.82704077,2052.5,2052.0,4.28382566]
[1770428681550,1.04879636,2052.4,2052.0,4.28382566]
[1770428681851,1.04879636,2052.3,2052.2,0.001]
[1770428683350,0.002,2052.5,2052.2,4.28482566]
[1770428683555,0.002,2052.5,2052.3,4.71230823]
[1770428694569,0.002,2052.5,2052.3,0.42848257]
[1770428694867,0.002,2052.5,2052.2,0.001]
[1770428695441,1.05198257,2052.4,2052.2,0.001]
[1770428695658,1.05198257,2052.3,2052.2,0.001]
[1770428696068,1.05198257,2052.3,2052.2,4.28482566]
[1770428696258,1.05398257,2052.3,2052.2,5.32255177]
[1770428699466,1.05398257,2052.3,2052.2,0.001]
[1770428701979,4.35907959,2052.2,2051.9,0.001]
[1770428702155,4.35907959,2052.2,2051.7,0.001]
[1770428702156,5.41106216,2052.1,2051.6,0.001]
[1770428702474,1.59308879,2052.0,2051.6,0.00207898]
[1770428702650,1.05198257,2051.9,2051.6,0.00207898]
[1770428702846,1.05198257,2051.8,2051.6,0.00207898]
[1770428703064,1.22014549,2052.3,2051.6,5.50446576]
[1770428703269,1.22014549,2052.3,2051.7,4.28382566]
[1770428703471,0.60927275,2052.2,2051.7,4.28382566]
[1770428703659,1.22014549,2052.3,2051.7,4.28382566]
[1770428703660,0.002,2052.3,2051.7,4.28382566]
[1770428703877,0.002,2052.7,2052.1,1.21822149]
[1770428704083,4.36107959,2052.7,2051.7,1.21846564]
[1770428704247,4.36107959,2052.7,2051.7,5.5022913]
[1770428704576,4.35907959,2052.6,2051.7,4.28382566]
[1770428704778,5.70269268,2052.5,2051.7,4.28382566]
[1770428705279,0.002,2052.7,2051.9,4.28382566]
[1770428705579,0.002,2052.7,2052.0,1.21829771]
[1770428705750,0.002,2052.7,2052.2,4.30882155]
[1770428705952,4.39492084,2052.7,2051.7,4.30882155]
[1770428706477,4.39492084,2052.7,2051.8,5.52725547]
[1770428706677,0.43949208,2052.6,2051.8,6.5674803]
[1770428706982,0.43949208,2052.6,2051.8,5.34904638]
[1770428707189,0.43949208,2052.6,2051.6,1.21953409]
[1770428707190,4.83241292,2052.6,2051.6,1.21953409]
[1770428707358,4.83241292,2052.6,2051.6,0.001]
[1770428707553,0.002,2052.7,2052.4,9.0750513]
[1770428707753,0.002,2052.7,2052.2,1.21819383]
[1770428708352,0.002,2052.7,2052.1,5.52705081]
[1770428708580,0.002,2052.7,2052.1,5.52707005]
[1770428709376,0.002,2052.5,2052.1,5.52707005]
[1770428709587,0.002,2052.5,2052.2,5.2544233]
[1770428710184,0.002,2052.5,2052.3,1.21814549]
[1770428710885,0.002,2052.5,2052.2,6.47261227]
[1770428711589,0.002,2052.5,2052.2,5.2544233]
[1770428711804,0.002,2052.5,2052.0,0.001]
[1770428713064,0.002,2052.5,2052.0,4.21529114]
[1770428713370,0.002,2052.5,2052.0,0.001]
[1770428714463,0.002,2052.5,2052.0,4.21529114]
[1770428716281,0.002,2052.5,2052.0,5.43356379]
[1770428716481,0.002,2052.5,2052.1,1.03070063]
[1770428718392,0.002,2052.5,2052.0,4.21529114]
[1770428718882,0.002,2052.5,2052.0,0.001]
[1770428720390,1.22002679,2052.5,2052.0,0.001]
[1770428723884,0.002,2052.5,2052.0,4.21529114]
[1770428724684,0.002,2052.5,2052.2,4.21429114]
[1770428725502,0.002,2052.5,2052.2,5.24495236]
[1770428726282,0.002,2052.7,2052.3,4.21429114]
[1770428726694,0.002,2052.7,2052.5,4.21429114]
[1770428728712,0.002,2052.9,2052.8,4.21429114]
[1770428729702,0.002,2053.1,2052.8,4.21429114]
[1770428729910,0.002,2053.1,2053.0,4.21429114]
[1770428730076,0.002,2053.5,2053.0,4.21429114]
[1770428730274,0.002,2053.3,2053.0,4.21429114]
[1770428730499,0.002,2053.8,2053.0,4.21429114]
[1770428730702,0.002,2053.8,2053.2,4.21429114]
[1770428730880,0.002,2054.0,2053.2,5.24455567]
[1770428730881,0.002,2053.7,2053.2,5.24455567]
[1770428731401,0.002,2053.6,2053.2,5.24455567]
[1770428731581,0.002,2053.8,2053.2,5.24455567]
[1770428732015,0.002,2053.7,2053.2,5.24455567]
[1770428732810,0.002,2053.7,2053.3,5.43184337]
[1770428733001,0.002,2053.7,2053.3,7.05213252]
[1770428733685,0.002,2053.7,2053.4,4.21429114]
[1770428734110,0.002,2054.0,2053.4,4.21429114]
[1770428734111,1e-08,2053.9,2053.4,4.21429114]
[1770428734907,1e-08,2053.9,2053.6,4.21429114]
[1770428735084,1e-08,2053.9,2053.7,0.54317248]
[1770428735279,0.002,2054.0,2053.7,4.75746362]
[1770428735720,0.002,2054.4,2053.8,4.44208321]
[1770428737392,0.002,2054.4,2054.0,4.44208321]
[1770428738309,0.002,2054.5,2054.0,4.44208321]
[1770428738310,5.49220349,2055.2,2054.0,4.44208321]
[1770428738513,4.27577058,2055.2,2054.2,4.44208321]
[1770428739111,5.49220247,2055.2,2054.2,4.44208321]
[1770428739307,4.27577058,2055.1,2054.3,1.21695954]
[1770428740020,4.27777058,2055.0,2054.3,1.21695954]
[1770428741118,0.002,2055.0,2054.3,5.65904275]
[1770428742213,0.002,2055.0,2054.4,4.44208321]
[1770428742386,0.002,2055.0,2054.5,5.00798748]
[1770428742707,0.002,2055.0,2054.5,0.56590427]
[1770428743115,0.002,2055.0,2054.5,5.00798748]
[1770428743327,0.002,2055.0,2054.7,4.44208321]
[1770428745292,0.002,2055.0,2054.9,4.44208321]
[1770428746007,5.49181993,2055.9,2054.9,5.49462324]
[1770428746209,5.49180344,2055.9,2054.9,5.49462324]
[1770428746416,4.27577058,2055.9,2054.9,5.49462324]
[1770428746588,4.86364249,2056.1,2054.9,5.49462324]
[1770428746589,5.49170934,2056.1,2054.9,5.49462324]
[1770428746792,4.27577058,2056.1,2054.9,5.49462324]
[1770428746990,1.21581663,2056.3,2055.1,4.44208321]
[1770428746991,0.002,2055.9,2055.1,4.44208321]
[1770428747516,0.002,2055.9,2055.3,4.44208321]
[1770428748121,5.49134548,2056.7,2055.3,4.44208321]
[1770428748122,1.21543059,2056.9,2055.3,4.44208321]
[1770428748298,4.27577058,2057.0,2055.7,4.44208321]
[1770428748635,4.27577058,2057.2,2055.7,4.44208321]
[1770428748960,0.5490991,2057.1,2055.9,4.44208321]
[1770428749429,5.49080995,2057.6,2056.3,4.44208321]
[1770428749803,1.21488968,2057.8,2056.3,4.44208321]
[1770428749993,4.27577058,2057.8,2056.3,4.44208321]
[1770428751505,1.21494872,2057.7,2056.5,4.44208321]
[1770428752104,5.49069641,2057.8,2056.5,4.44208321]
[1770428752408,1.03500422,2057.7,2056.7,4.44208321]
[1770428752810,1.21470556,2058.2,2056.7,4.44208321]
[1770428753516,5.49037266,2058.3,2056.9,4.44208321]
[1770428753718,1.21460208,2058.3,2056.9,4.44208321]
[1770428753920,0.1278398,2058.7,2057.4,9.793048]
[1770428754130,10.26988748,2059.5,2057.4,9.793048]
[1770428754131,4.27577058,2059.7,2057.8,4.44208321]
[1770428754434,1.45933916,2059.9,2057.5,10.26988748]
[1770428754435,4.27577058,2059.5,2058.0,4.44208321]
[1770428754934,1.54823972,2060.3,2058.6,4.44208321]
[1770428755134,0.33480387,2060.3,2058.9,4.44208321]
[1770428755338,0.33480387,2060.3,2059.3,4.44208321]
[1770428755561,1.78916042,2062.1,2060.3,4.44208321]
[1770428755713,1.78916042,2062.1,2060.9,4.44208321]
[1770428755908,1.54372543,2062.1,2061.1,0.25355806]
[1770428756115,4.37817058,2061.7,2060.1,4.44208321]
[1770428756340,4.37817058,2061.7,2059.1,7.30212673]
[1770428756341,4.27577058,2060.8,2059.4,1.82898262]
[1770428756541,4.37817058,2060.7,2059.1,4.44208321]
[1770428756744,4.37817058,2060.7,2058.7,4.44208321]
[1770428756745,4.27577058,2060.3,2058.7,4.44208321]
[1770428757043,0.1024,2059.7,2058.3,4.44208321]
[1770428757219,4.27577058,2059.7,2058.0,4.44208321]
[1770428757426,1.21388686,2059.5,2058.2,1.21465245]
[1770428757618,1.21388686,2059.5,2058.1,0.48906835]
[1770428757619,5.48965744,2059.5,2058.1,1.70374167]
[1770428758225,4.27577058,2058.8,2057.1,4.44208321]
[1770428758545,4.27577058,2059.2,2058.1,1.21470612]
[1770428758732,1.31628686,2059.5,2058.1,1.21470612]
[1770428758733,5.48965744,2059.5,2058.1,1.21470612]
[1770428758920,5.48965744,2059.5,2058.1,5.65678933]
[1770428759246,5.48965744,2059.5,2058.2,4.44208321]
[1770428759247,1.21388686,2059.5,2058.2,4.44208321]
[1770428759559,1.21400475,2059.3,2058.3,0.56567893]
[1770428759723,1.21400475,2059.3,2058.1,1.214712]
[1770428760116,1.21400475,2059.3,2058.2,1.21465324]
[1770428760354,1.21400475,2059.3,2058.3,1.21459]
[1770428760856,1.86368654,2059.4,2058.4,4.44208321]
[1770428761016,1.86368654,2059.4,2058.0,1.21476296]
[1770428761017,4.94771224,2059.3,2058.0,1.21476296]
[1770428761221,0.67194166,2059.3,2058.3,1.21459113]
[1770428761463,0.67194166,2059.3,2058.2,1.21464849]
[1770428761637,0.7,2059.1,2058.2,1.21464849]
[1770428761838,0.7,2059.1,2058.2,1.05158072]
[1770428762341,0.7,2059.1,2058.2,5.49366393]
[1770428762557,1.21401768,2059.3,2058.2,5.49366393]
[1770428762790,1.21401768,2059.3,2058.2,1.05158072]
[1770428763062,1.21401768,2059.3,2058.1,1.21471093]
[1770428763239,4.85601903,2059.5,2058.1,1.21471093]
[1770428763240,4.85559402,2059.5,2058.2,4.44208321]
[1770428763660,4.85559402,2059.5,2058.3,1.21459456]
[1770428763855,4.85559402,2059.5,2058.3,5.65667777]
[1770428764164,4.27577058,2059.4,2058.1,1.21470581]
[1770428764370,0.91313646,2059.3,2058.2,1.21464952]
[1770428764542,4.85559402,2059.5,2058.2,5.65673273]
[1770428764738,1.64140732,2059.6,2058.6,4.44208321]
[1770428764937,0.002,2060.3,2059.3,4.44208321]
[1770428765166,1.21489098,2061.2,2059.9,4.48600279]
[1770428765365,0.60664338,2061.1,2060.1,4.44208321]
[1770428765544,0.002,2061.2,2060.3,4.44208321]
[1770428765747,0.002,2061.2,2060.1,6.56908283]
[1770428766051,4.29926526,2061.2,2060.0,0.44860028]
[1770428766366,4.29926526,2061.2,2059.8,1.21370834]
[1770428766538,0.002,2061.2,2059.8,9.0429959]
[1770428766870,0.7,2061.0,2059.9,4.18823478]
[1770428767167,0.002,2061.2,2060.1,1.21349991]
[1770428767346,0.002,2061.2,2060.2,1.21344951]
[1770428767546,0.002,2061.2,2059.9,4.18823478]
[1770428767547,1.21294454,2061.1,2060.0,1.21355257]
[1770428767745,1.21294454,2061.1,2059.9,1.21362485]
[1770428768342,1.21294454,2061.1,2060.0,4.34205263]
[1770428769468,1.21294454,2061.1,2059.9,1.21362485]
[1770428769650,1.21294454,2061.1,2059.8,4.854686]
[1770428769850,0.71352218,2061.0,2059.9,0.97092906]
[1770428770363,5.13620308,2061.0,2059.6,1.21378482]
[1770428770564,4.46660048,2060.9,2059.5,1.21384702]
[1770428770774,4.46660048,2060.9,2059.6,1.21382063]
[1770428771149,4.46660048,2060.9,2059.5,1.21385627]
[1770428771344,4.94069317,2060.8,2059.8,0.001]
[1770428771668,1.21317998,2060.7,2059.8,0.001]
[1770428771842,1.91317998,2060.7,2059.8,0.001]
[1770428772558,4.46660048,2060.6,2059.5,0.001]
[1770428772753,4.4226809,2060.4,2059.5,0.001]
[1770428773546,1.21341552,2060.3,2059.5,0.001]
[1770428773871,4.4226809,2060.2,2059.5,0.001]
[1770428774373,1.21327214,2060.6,2059.5,0.001]
[1770428774559,5.63595304,2060.6,2059.5,0.001]
[1770428774764,5.47157175,2060.5,2059.5,0.001]
[1770428775961,1.31575662,2060.4,2059.5,0.001]
[1770428776143,4.4226809,2060.3,2059.5,0.001]
[1770428776469,4.46660048,2060.3,2059.5,0.001]
[1770428776842,0.7,2060.1,2059.5,0.001]
[1770428777285,0.7,2060.1,2058.8,1.21425466]
[1770428777567,0.7,2060.1,2058.9,1.04147333]
[1770428778075,1.21359223,2060.0,2059.0,1.21418164]
[1770428779051,1.21359223,2060.0,2058.9,1.04147333]
[1770428779377,1.21359223,2060.0,2058.8,1.21425926]
[1770428779679,5.63627313,2060.0,2058.7,1.21532645]
[1770428779848,0.7,2060.1,2059.0,4.34205263]
[1770428780045,1.91355856,2060.1,2059.2,4.34205263]
[1770428780349,0.7,2060.1,2059.2,4.34205263]
[1770428780547,0.7,2060.1,2059.3,4.89767016]
[1770428780753,1.9135665,2060.1,2059.3,4.89767016]
[1770428780974,1.91353963,2060.1,2059.3,4.89767016]